fUST/lending_fUST_20241117
["ID","MTS","AMOUNT","RATE_DAILY","PERIOD"]
[342354862,1731772855547,785.94491006,0.00026,60]
[342354864,1731773004978,3000.0,0.000139,30]
[342354865,1731773005457,3000.0,0.0001391,30]
[342354866,1731773005928,3000.0,0.0001392,30]
[342354867,1731773006606,3000.0,0.0001393,30]
[342354868,1731773006991,3000.0,0.0001394,30]
[342354869,1731773007367,3000.0,0.0001395,30]
[342354870,1731773007903,3000.0,0.0001396,30]
[342354871,1731773008213,3000.0,0.0001397,30]
[342354872,1731773008780,3000.0,0.0001398,30]
[342354873,1731773009352,3000.0,0.0001399,30]
[342354874,1731773009841,3000.0,0.00014,30]
[342354875,1731773010290,3000.0,0.0001401,30]
[342354876,1731773010719,3000.0,0.0001402,30]
[342354877,1731773011434,3000.0,0.0001403,30]
[342354878,1731773011550,3000.0,0.0001404,30]
[342354879,1731773011874,3992.476978,0.0001405,30]
[342355007,1731773436225,-290.00894769,0.00011461,2]
[342355009,1731773436238,-300.0,0.00011694,2]
[342355011,1731773436248,-6384.30996337,0.00011695,2]
[342355014,1731773436266,-12936.22038853,0.00011695,2]
[342355016,1731773436276,-500.0,0.00011753,2]
[342355018,1731773436285,-500.0,0.00011753,2]
[342355020,1731773436296,-500.0,0.00011753,2]
[342355022,1731773436307,-211.97398315,0.00011753,2]
[342355024,1731773436317,-2000.0,0.00012,2]
[342355025,1731773436326,-600.35027984,0.000125,2]
[342355028,1731773436338,-858.58470169,0.000125,2]
[342355030,1731773436352,-432.85932834,0.000125,2]
[342355107,1731773438251,-108.20569013,0.000125,2]
[342355108,1731773438262,-511.49325865,0.00012788,2]
[342355169,1731773439842,-5010.90509743,0.00012788,2]
[342355196,1731773442921,-4973.62600202,0.00012788,2]
[342355197,1731773442931,-1636.05381392,0.000128,2]
[342355199,1731773442940,-874.71562789,0.00012825,2]
[342355203,1731773442976,-761.338186,0.00012825,2]
[342355204,1731773442987,-314.3118138,0.0001285,2]
[342355205,1731773442999,-1321.74200009,0.0001285,2]
[342355206,1731773443009,-261.84738003,0.0001285,2]
[342355207,1731773443018,-420.0,0.00012863,2]
[342355208,1731773443027,-1636.05381389,0.00012875,2]
[342355209,1731773443037,-11583.44966927,0.000129,2]
[342355219,1731773445993,-1852.67496581,0.000129,2]
[342355220,1731773446002,-4287.32503423,0.000129,2]
[342355221,1731773446014,-270.27496577,0.000129,2]
[342355222,1731773446024,-477.6227821,0.000129,2]
[342355223,1731773446036,-58906.3772179,0.000129,2]
[342355224,1731773446047,-1836.09435834,0.000129,2]
[342355225,1731773446057,-1636.05381389,0.000129,2]
[342355226,1731773446066,-864.71694365,0.000129,2]
[342355227,1731773446076,-500.0,0.00012973,2]
[342355228,1731773446085,-500.0,0.00012973,2]
[342355229,1731773446095,-503.56010155,0.00012973,2]
[342355231,1731773446105,-504.44464,0.00012973,2]
[342355232,1731773446115,-562.9393885,0.00012973,2]
[342355233,1731773446125,-539.98947699,0.00012973,2]
[342355234,1731773446299,-500.0,0.00012973,2]
[342355235,1731773446316,-500.0,0.00012973,2]
[342355236,1731773446326,-500.0,0.00012973,2]
[342355237,1731773446335,-302.36637322,0.00012973,2]
[342355238,1731773446345,-500.0,0.00012973,2]
[342355239,1731773446354,-500.0,0.00012973,2]
[342355240,1731773446363,-500.0,0.00012973,2]
[342355241,1731773446373,-500.0,0.00012973,2]
[342355242,1731773446382,-500.0,0.00012973,2]
[342355243,1731773446391,-201.60331711,0.00012999,2]
[342355244,1731773446401,-1773.85,0.00012999,4]
[342355245,1731773446410,-261.84738003,0.00013,2]
[342355246,1731773446419,-578090.10488499,0.00013,2]
[342355247,1731773446665,-59566.78901673,0.00013,2]
[342355252,1731773598462,3000.0,0.00014,30]
[342355253,1731773598905,3000.0,0.0001401,30]
[342355254,1731773599407,3000.0,0.0001402,30]
[342355255,1731773599848,3000.0,0.0001403,30]
[342355256,1731773600618,3000.0,0.0001404,30]
[342355257,1731773601198,3000.0,0.0001405,30]
[342355258,1731773601729,3000.0,0.0001406,30]
[342355259,1731773602216,3000.0,0.0001407,30]
[342355260,1731773602612,3000.0,0.0001408,30]
[342355262,1731773602956,3000.0,0.0001409,30]
[342355263,1731773603395,3000.0,0.000141,30]
[342355264,1731773603931,3000.0,0.0001411,30]
[342355265,1731773604414,3000.0,0.0001412,30]
[342355266,1731773604920,3000.0,0.0001413,30]
[342355267,1731773605419,3000.0,0.0001414,30]
[342355268,1731773605940,3992.476978,0.0001415,30]
[342355274,1731774193333,3000.0,0.000141,30]
[342355275,1731774193698,3000.0,0.0001411,30]
[342355276,1731774193993,5977.67806,0.0001412,30]
[342355298,1731774526050,312.77005598,0.00025,120]
[342355312,1731774600421,713.0,0.00026,60]
[342355321,1731774628191,193.466,0.0002565,60]
[342355845,1731774638283,-300.0,0.00012615,2]
[342355846,1731774638293,-300.0,0.00012615,2]
[342355847,1731774638304,-506.90799292,0.00012616,2]
[342355902,1731774640028,-2312.13563876,0.00012616,2]
[342355904,1731774640040,-7676.98072642,0.00012616,2]
[342355905,1731774640050,-174.435,0.0001274,2]
[342355906,1731774640066,-500.0,0.00012973,2]
[342355907,1731774640076,-500.0,0.00012973,2]
[342355908,1731774640086,-500.0,0.00012973,2]
[342355909,1731774640096,-500.0,0.00012973,2]
[342355911,1731774640105,-503.84059736,0.00012973,2]
[342355912,1731774640115,-500.0,0.00012973,2]
[342355913,1731774640127,-500.0,0.00012973,2]
[342355915,1731774640143,-500.0,0.00012973,2]
[342355917,1731774640152,-500.0,0.00012973,2]
[342355919,1731774640162,-500.0,0.00012973,2]
[342355921,1731774640174,-4065.54295792,0.00012999,2]
[342355923,1731774640184,-1699.94,0.00012999,4]
[342355925,1731774640194,-261.84738003,0.00013,2]
[342355926,1731774640204,-331067.76176796,0.00013,2]
[342355927,1731774640217,-378.08,0.00013,2]
[342355928,1731774640229,-80928.51578129,0.00013,2]
[342355938,1731774643038,-500.0,0.00012973,2]
[342355940,1731774643048,-500.0,0.00012973,2]
[342355942,1731774643058,-513.03096749,0.00013,2]
[342355943,1731774643097,-2710.36197195,0.00012999,2]
[342355944,1731774643107,-2580.01095544,0.00013,2]
[342355945,1731774643158,-30694.88110958,0.00013,2]
[342355960,1731774646243,-9917.3293,0.00013,2]
[342355961,1731774646255,-8771.29615747,0.00013,2]
[342355962,1731774646267,-125312.24733036,0.00013,2]
[342355963,1731774646285,-696.50325721,0.00013,2]
[342356024,1731775832301,-643.2768318,0.00011389,2]
[342356026,1731775832311,-883.94754831,0.00011651,2]
[342356028,1731775832322,-1464.48017499,0.00011651,2]
[342356030,1731775832332,-300.0,0.00011681,2]
[342356032,1731775832342,-300.0,0.00011681,2]
[342356034,1731775832351,-1618.76867901,0.00011682,2]
[342356036,1731775832364,-1230.45,0.00011682,2]
[342356039,1731775832376,-355.5,0.00011682,2]
[342356041,1731775832389,-21695.28132099,0.00011682,2]
[342356043,1731775832399,-250.0,0.00011788,2]
[342356045,1731775832410,-2096.9876393,0.00011978,2]
[342356047,1731775832419,-167.21898368,0.00012607,2]
[342356050,1731775832428,-10496.0243581,0.00012762,2]
[342356052,1731775832438,-420.0,0.00012827,2]
[342356055,1731775832447,-420.0,0.00012849,2]
[342356057,1731775832457,-12277.7239992,0.000129,2]
[342356060,1731775832466,-174.436,0.000129,2]
[342356063,1731775832475,-1209.23545734,0.000129,2]
[342356066,1731775832485,-756.62732572,0.000129,2]
[342356069,1731775832494,-756.62732569,0.000129,2]
[342356072,1731775832503,-1000.0,0.000129,2]
[342356074,1731775832512,-500.0,0.00012973,2]
[342356077,1731775832522,-606.12602978,0.00012973,2]
[342356080,1731775832531,-500.0,0.00012973,2]
[342356082,1731775832540,-500.02318707,0.00012973,2]
[342356084,1731775832550,-500.0,0.00012973,2]
[342356086,1731775832559,-500.0,0.00012973,2]
[342356088,1731775832569,-500.0,0.00012973,2]
[342356090,1731775832578,-500.0,0.00012973,2]
[342356092,1731775832587,-500.0,0.00012973,2]
[342356094,1731775832598,-500.0,0.00012973,2]
[342356096,1731775832607,-500.0,0.00012973,2]
[342356097,1731775832619,-500.0,0.00012973,2]
[342356099,1731775832629,-500.0,0.00012973,2]
[342356102,1731775832640,-563.40491293,0.00012973,2]
[342356103,1731775832650,-500.0,0.00012973,2]
[342356106,1731775832661,-500.0,0.00012973,2]
[342356107,1731775832671,-368.81433534,0.00012973,2]
[342356110,1731775832681,-500.36499101,0.00012973,2]
[342356111,1731775832691,-5000.0,0.00012998,2]
[342356113,1731775832700,-1806.9079813,0.00012999,2]
[342356115,1731775832709,-1629.11,0.00012999,4]
[342356117,1731775832719,-150.01,0.00012999,2]
[342356119,1731775832729,-167.21898368,0.00013,2]
[342356121,1731775832738,-111060.89578756,0.00013,2]
[342356193,1731775838450,-429.10579902,0.00012973,2]
[342356194,1731775838462,-70.89420098,0.00012973,2]
[342356195,1731775838471,-264.31263164,0.00012999,2]
[342356196,1731775838481,-1204.60532087,0.00012999,2]
[342356197,1731775838490,-7517.88784651,0.00013,2]
[342356198,1731775838618,-2345.10666288,0.00013,2]
[342356207,1731775841451,-670.43585308,0.00013,2]
[342356208,1731775841466,-2656.04889451,0.00013,2]
[342356209,1731775841478,-256743.05971512,0.00013,2]
[342356210,1731775841489,-1709.75456417,0.00013,2]
[342356211,1731775841501,-160618.42169757,0.00013,2]
[342356243,1731775846256,-289476.29712602,0.00013,2]
[342356244,1731775846268,-367042.89704984,0.00013,2]
[342356245,1731775846315,-95474.22136286,0.00013,2]
[342356250,1731776583813,184.305,0.0002565,60]
[342356298,1731776887397,291.45992485,0.00025,60]
[342356596,1731777035041,-599.43375492,0.00011879,2]
[342356598,1731777035050,-278.11929508,0.00011999,2]
[342356600,1731777035064,-1183.51323,0.00011999,2]
[342356681,1731777038760,-70.47908922,0.00011999,2]
[342356682,1731777038770,-300.0,0.00012662,2]
[342356683,1731777038779,-300.0,0.00012662,2]
[342356684,1731777038788,-378.46053352,0.00012663,2]
[342356685,1731777038799,-7877.37464424,0.00012663,2]
[342356686,1731777038811,-174.436,0.0001274,2]
[342356687,1731777038820,-883.38663468,0.000129,2]
[342356688,1731777038829,-500.0,0.00012973,2]
[342356689,1731777038838,-500.0,0.00012973,2]
[342356690,1731777038847,-500.0,0.00012973,2]
[342356691,1731777038856,-500.0,0.00012973,2]
[342356692,1731777038865,-511.30350638,0.00012973,2]
[342356693,1731777038874,-183.55701854,0.00012973,2]
[342356694,1731777038884,-500.0,0.00012973,2]
[342356695,1731777038894,-500.0,0.00012973,2]
[342356696,1731777038904,-500.0,0.00012973,2]
[342356697,1731777038913,-1204.60532087,0.00012999,2]
[342356698,1731777038922,-1561.23,0.00012999,4]
[342356699,1731777038931,-167.21898371,0.00013,2]
[342356700,1731777038941,-33732.94676261,0.00013,2]
[342356716,1731777040488,-181240.14994644,0.00013,2]
[342356727,1731777043447,-1616.36563942,0.00013,2]
[342356728,1731777043463,-1070.0000002,0.00013,2]
[342356729,1731777043529,-6436.31234089,0.00013,2]
[342356746,1731777164596,700.0,0.00025999,60]
[342356756,1731777366104,151.0,0.00026,60]
[342356757,1731777627281,3000.0,0.00025999,60]
[342356892,1731778237674,-9702.0263501,0.00011911,2]
[342356895,1731778237692,-300.0,0.00012667,2]
[342356897,1731778237702,-300.0,0.00012668,2]
[342356899,1731778237711,-174.436,0.0001274,2]
[342356900,1731778237721,-8946.41749756,0.00012777,2]
[342356902,1731778237730,-16447.0,0.00012889,2]
[342356904,1731778237740,-1723.31392129,0.000129,2]
[342356906,1731778237749,-3674.1,0.000129,2]
[342356908,1731778237759,-567.47049432,0.000129,2]
[342356910,1731778237768,-222.31898159,0.000129,2]
[342356912,1731778237782,-500.0,0.00012973,2]
[342356915,1731778237792,-500.0,0.00012973,2]
[342356916,1731778237801,-500.0,0.00012973,2]
[342356918,1731778237811,-500.0,0.00012973,2]
[342356920,1731778237820,-500.0,0.00012973,2]
[342356922,1731778237830,-500.0,0.00012973,2]
[342356925,1731778237839,-602.30266043,0.00012999,2]
[342356927,1731778237849,-1496.18,0.00012999,4]
[342356929,1731778237861,-1065844.8974753,0.00013,2]
[342356931,1731778237873,-2268.98456718,0.00013,2]
[342356933,1731778237884,-645.00812953,0.00013,2]
[342357039,1731778238891,-2928.67713228,0.00013,2]
[342357041,1731778238903,-2812.5400308,0.00013,2]
[342357043,1731778238915,-673.85929846,0.00013,2]
[342357046,1731778238926,-1574.35,0.00013,2]
[342357048,1731778238939,-53493.6,0.00013,2]
[342357194,1731778240492,-314.84,0.00013,2]
[342357414,1731778243504,-2599.24368637,0.00013,2]
[342357427,1731778243642,-4552.28041526,0.00013,2]
[342357479,1731778263220,300.46,0.00010959,2]
[342357480,1731778385613,7289.0748717,0.0001,2]
[342357487,1731778917738,509.18266769,0.00026,60]
[342357488,1731778988292,182.817,0.0002508,60]
[342357493,1731779203753,24900.0,0.00010498,2]
[342357518,1731779343139,248.0535565,0.00010582,2]
[342357568,1731779431802,-250.0,0.00011113,2]
[342357569,1731779431812,-1823.52273234,0.00011373,2]
[342357570,1731779431821,-198.78372766,0.00011373,2]
[342357571,1731779431831,-300.0,0.0001144,2]
[342357572,1731779431840,-300.0,0.0001144,2]
[342357573,1731779431850,-622.48624684,0.00011441,2]
[342357574,1731779431859,-622.48624684,0.00011441,2]
[342357576,1731779431869,-446252.86727758,0.00011441,2]
[342357579,1731779431885,-1372.90541688,0.00011441,2]
[342357581,1731779431896,-1777.72,0.00011441,2]
[342357663,1731779438218,-2254.3991872,0.00011441,2]
[342357809,1731779439872,-3947.4098,0.00011441,2]
[342357815,1731779439918,-721.52144584,0.00011441,2]
[342357817,1731779439930,-283670.80244638,0.00011441,2]
[342358132,1731779442930,-5278.17347194,0.00011441,2]
[342358135,1731779442941,-4012.40605219,0.00011441,2]
[342358137,1731779442953,-3209.6,0.00011441,2]
[342358139,1731779442965,-3982121.3112096,0.00011441,2]
[342358440,1731779445847,-1068.4611726,0.00011441,2]
[342360797,1731779470615,162.07930823,0.00011013,2]
[342363085,1731779793822,1353.246931,0.00010473,2]
[342363089,1731779997602,5867.234973,0.00010449,2]
[342363093,1731780057686,392.55,0.00025,120]
[342363099,1731780307732,10496.0243581,0.00010991,2]
[342363100,1731780354795,2914.1908476,0.00010449,2]
[342363135,1731780564618,204.63474518,0.00010999,2]
[342363170,1731780632035,-174.436,0.00011212,2]
[342363172,1731780632045,-197.81842352,0.00011273,2]
[342363174,1731780632054,-73.67180469,0.00011323,2]
[342363176,1731780632066,-124.14661883,0.00011323,2]
[342363179,1731780632076,-300.0,0.00011372,2]
[342363181,1731780632086,-137.31634921,0.00011372,2]
[342363188,1731780632142,-162.68365079,0.00011372,2]
[342363190,1731780632154,-4970.27283396,0.00011373,2]
[342363192,1731780632167,-1375.38583963,0.00011373,2]
[342363194,1731780632180,-4069.5493203,0.00011373,2]
[342363197,1731780632190,-1641.17045916,0.00011373,2]
[342363199,1731780632201,-197.81842352,0.00011373,2]
[342363201,1731780632212,-1433.84,0.0001144,4]
[342363203,1731780632222,-514.90333164,0.00011441,2]
[342363205,1731780632232,-87375.06257643,0.00011441,2]
[342363708,1731780638278,-5943.35967525,0.00011441,2]
[342363718,1731780638370,-1541.83558493,0.00011441,2]
[342363720,1731780638382,-1576.29488824,0.00011441,2]
[342363952,1731780643171,-21299.27895861,0.00011441,2]
[342363955,1731780643182,-9137.484932,0.00011441,2]
[342370602,1731780714074,9037.6449208,0.0001076,2]
[342376168,1731780788303,10496.0243581,0.00011061,2]
[342376174,1731780951080,174.108,0.0002565,60]
[342376184,1731781198690,576.3515027,0.00011035,2]
[342376188,1731781319633,8853.09905263,0.00011025,2]
[342376193,1731781469869,5260.4029292,0.00010449,2]
[342376255,1731781770233,501505.69538096,0.00011,2]
[342376288,1731781832192,-300.0,0.00010999,2]
[342376289,1731781832202,-167.83918559,0.00010999,2]
[342376290,1731781832213,-132.16081441,0.00010999,2]
[342376291,1731781832223,-343.26888776,0.00011,2]
[342376292,1731781832231,-283324.74844496,0.00011,2]
[342376293,1731781832243,-9340.79063774,0.00011,2]
[342376294,1731781832286,-2151.40780192,0.00011,2]
[342376316,1731781838420,-479.46042894,0.00011,2]
[342376329,1731781838544,-3681.24308609,0.00011,2]
[342376469,1731781840178,-54688.8,0.00011,2]
[342376472,1731781840190,-1370.0,0.00011,2]
[342376475,1731781840214,-163955.2816109,0.00011,2]
[342376478,1731781840234,-7310.07344383,0.00011,2]
[342376781,1731781843368,-47922.1914314,0.00011,2]
[342376782,1731781843380,-313.26257089,0.00011,2]
[342376785,1731781843396,-5038.96174834,0.00011,2]
[342376787,1731781843407,-5999.43247461,0.00011,2]
[342385402,1731782496021,167.86026,9.977e-05,2]
[342385407,1731782733117,5000.0,0.00026,60]
[342385471,1731782866609,105.50974,0.0001,2]
[342385472,1731782866652,273.37,0.0001,2]
[342385473,1731782866692,273.37,0.0001,2]
[342385474,1731782866735,273.37,0.0001,2]
[342385475,1731782866776,273.37,0.0001,2]
[342385476,1731782866818,273.37,0.0001,2]
[342385477,1731782866859,273.37,0.0001,2]
[342385478,1731782866899,273.37,0.0001,2]
[342385479,1731782866939,273.37,0.0001,2]
[342385480,1731782866980,273.37,0.0001,2]
[342385481,1731782867019,273.37,0.0001,2]
[342385482,1731782867060,273.37,0.0001,2]
[342385483,1731782867282,273.37,0.0001,2]
[342385484,1731782867317,273.37,0.0001,2]
[342385485,1731782867346,141.90670843,0.0001,2]
[342385486,1731782890595,131.46329157,9.978e-05,2]
[342385487,1731782890622,273.37,9.978e-05,2]
[342385488,1731782890648,273.37,9.978e-05,2]
[342385489,1731782890674,273.37336231,9.978e-05,2]
[342385490,1731782890696,46.96186832,9.978e-05,2]
[342385491,1731782919213,165.859,0.0002565,60]
[342385928,1731783036062,-167.86026,0.00010027,2]
[342385930,1731783036073,-133.71248665,0.0001078,2]
[342385932,1731783036086,-18.89351335,0.0001078,2]
[342385934,1731783036096,-300.0,0.00010958,2]
[342385936,1731783036106,-343.38,0.00010959,2]
[342385938,1731783036115,-1000.85,0.00010959,2]
[342385940,1731783036124,-501.41789002,0.00010973,2]
[342385942,1731783036134,-467.81359663,0.00010973,2]
[342385944,1731783036145,-36.79843308,0.00010973,2]
[342385946,1731783036155,-380.42015081,0.00010973,2]
[342385948,1731783036166,-175.56249676,0.00010973,2]
[342385950,1731783036175,-588.66035476,0.00010973,2]
[342385952,1731783036185,-500.22012842,0.00010973,2]
[342385955,1731783036195,-417.46077286,0.00010973,2]
[342385957,1731783036204,-201.91057334,0.00010973,2]
[342385959,1731783036213,-500.0,0.00010973,2]
[342385960,1731783036223,-500.92778353,0.00010973,2]
[342385962,1731783036233,-500.0,0.00010973,2]
[342385964,1731783036242,-213.05790296,0.00010973,2]
[342385966,1731783036251,-500.0,0.00010973,2]
[342385968,1731783036260,-500.0,0.00010973,2]
[342385970,1731783036269,-201.91151111,0.00010973,2]
[342385972,1731783036278,-500.74073036,0.00010973,2]
[342385974,1731783036288,-500.0,0.00010973,2]
[342385977,1731783036298,-200.65851638,0.00010973,2]
[342385979,1731783036308,-500.0,0.00010973,2]
[342385981,1731783036317,-506.95754395,0.00010973,2]
[342385983,1731783036329,-500.0,0.00010973,2]
[342385985,1731783036338,-500.0,0.00010973,2]
[342385987,1731783036348,-500.98790361,0.00010973,2]
[342385989,1731783036358,-500.0,0.00010973,2]
[342385991,1731783036367,-500.0,0.00010973,2]
[342385993,1731783036377,-501.49891268,0.00010973,2]
[342385995,1731783036386,-326.7714828,0.00010973,2]
[342385997,1731783036395,-500.0,0.00010973,2]
[342385999,1731783036404,-1374.1,0.00010999,4]
[342386001,1731783036414,-228.84592517,0.00011,2]
[342386003,1731783036424,-161555.16637712,0.00011,2]
[342386005,1731783036439,-1519.78800475,0.00011,2]
[342386007,1731783036455,-6227.2512915,0.00011,2]
[342386388,1731783040482,-9540.30753041,0.00011,2]
[342386390,1731783040495,-12737.58300331,0.00011,2]
[342386993,1731783046586,-1362.0127236,0.00010936,2]
[342391733,1731783233742,500.0,0.00026,60]
[342391734,1731783234030,500.0,0.00026,60]
[342391735,1731783234095,500.0,0.00026,60]
[342391736,1731783234338,500.0,0.00026,60]
[342391737,1731783234459,627.35172286,0.00026,60]
[342391738,1731783234631,500.0,0.00026,60]
[342391739,1731783234897,526.12782208,0.00026,60]
[342391741,1731783235431,500.0,0.00026,60]
[342391743,1731783235693,1063.67,0.00026,60]
[342391744,1731783235722,500.0,0.00026,60]
[342391746,1731783235957,1063.67,0.00026,60]
[342391747,1731783236001,500.0,0.00026,60]
[342391748,1731783236228,1063.67,0.00026,60]
[342391749,1731783236346,546.18847809,0.00026,60]
[342391751,1731783236542,1063.67,0.00026,60]
[342391753,1731783236782,1063.67,0.00026,60]
[342391754,1731783237008,1591.98,0.00026,60]
[342391755,1731783237049,1063.67,0.00026,60]
[342391756,1731783237184,500.0,0.00026,60]
[342391757,1731783237314,1063.67,0.00026,60]
[342391758,1731783237361,1591.98,0.00026,60]
[342391759,1731783237459,339.97128374,0.00026,60]
[342391760,1731783237668,1063.67,0.00026,60]
[342391761,1731783237983,1591.98,0.00026,60]
[342391762,1731783238012,500.0,0.00026,60]
[342391763,1731783238044,1063.67,0.00026,60]
[342391764,1731783238082,1591.98,0.00026,60]
[342391765,1731783238113,4103.58,0.00026,60]
[342391766,1731783238148,500.0,0.00026,60]
[342391767,1731783238185,1591.98,0.00026,60]
[342391768,1731783238318,500.0,0.00026,60]
[342391769,1731783238401,4103.58,0.00026,60]
[342391770,1731783238430,1063.67,0.00026,60]
[342391771,1731783238465,1591.98,0.00026,60]
[342391772,1731783238660,500.0,0.00026,60]
[342391773,1731783238734,1063.67,0.00026,60]
[342391774,1731783238762,1591.98,0.00026,60]
[342391775,1731783238862,500.0,0.00026,60]
[342391776,1731783239077,500.0,0.00026,60]
[342391777,1731783239120,1591.98,0.00026,60]
[342391778,1731783239155,1063.67,0.00026,60]
[342391779,1731783239184,4103.58,0.00026,60]
[342391780,1731783239213,500.0,0.00026,60]
[342391781,1731783239245,500.0,0.00026,60]
[342391782,1731783239273,1591.98,0.00026,60]
[342391783,1731783239302,1063.67,0.00026,60]
[342391784,1731783239333,4103.58,0.00026,60]
[342391785,1731783239370,500.0,0.00026,60]
[342391786,1731783239480,500.0,0.00026,60]
[342391787,1731783239510,500.0,0.00026,60]
[342391788,1731783239550,207.96037205,0.00026,60]
[342391789,1731783239580,4103.58,0.00026,60]
[342391790,1731783239611,500.0,0.00026,60]
[342391791,1731783239640,1591.98,0.00026,60]
[342391792,1731783239680,1063.67,0.00026,60]
[342391793,1731783239725,573.11,0.00026,60]
[342391794,1731783239819,500.0,0.00026,60]
[342391795,1731783239888,503.39824282,0.00026,60]
[342391796,1731783239932,500.0,0.00026,60]
[342391797,1731783239960,1063.67,0.00026,60]
[342391798,1731783239988,1591.98,0.00026,60]
[342391799,1731783240017,4103.58,0.00026,60]
[342391800,1731783240046,573.11,0.00026,60]
[342391801,1731783240077,500.0,0.00026,60]
[342391802,1731783240105,477.02817461,0.00026,60]
[342391803,1731783240134,500.0,0.00026,60]
[342391804,1731783240189,4103.58,0.00026,60]
[342391805,1731783240234,573.11,0.00026,60]
[342391806,1731783240265,500.0,0.00026,60]
[342391807,1731783240443,500.0,0.00026,60]
[342391808,1731783240473,500.0,0.00026,60]
[342391809,1731783240521,500.0,0.00026,60]
[342391810,1731783240552,1591.98,0.00026,60]
[342391811,1731783240582,573.11,0.00026,60]
[342391812,1731783240613,559.16,0.00026,60]
[342391813,1731783240644,4103.58,0.00026,60]
[342391814,1731783240750,500.0,0.00026,60]
[342391815,1731783240885,500.0,0.00026,60]
[342391816,1731783240915,500.0,0.00026,60]
[342391817,1731783240945,559.16,0.00026,60]
[342391818,1731783240981,573.11,0.00026,60]
[342391819,1731783241022,1591.98,0.00026,60]
[342391820,1731783241053,4103.58,0.00026,60]
[342391821,1731783241084,500.0,0.00026,60]
[342391822,1731783241114,455.79785059,0.00026,60]
[342391823,1731783241144,500.0,0.00026,60]
[342391824,1731783241174,500.0,0.00026,60]
[342391825,1731783241203,559.16,0.00026,60]
[342391826,1731783241233,1591.98,0.00026,60]
[342391827,1731783241262,573.11,0.00026,60]
[342391828,1731783241291,4103.58,0.00026,60]
[342391829,1731783241439,500.0,0.00026,60]
[342391830,1731783241468,500.0,0.00026,60]
[342391831,1731783241496,500.0,0.00026,60]
[342391832,1731783241531,559.16,0.00026,60]
[342391833,1731783241561,1591.98,0.00026,60]
[342391834,1731783241623,573.11,0.00026,60]
[342391835,1731783241676,4103.58,0.00026,60]
[342391836,1731783241803,500.0,0.00026,60]
[342391837,1731783241854,500.0,0.00026,60]
[342391838,1731783241897,500.0,0.00026,60]
[342391839,1731783241943,559.16,0.00026,60]
[342391840,1731783241989,1591.98,0.00026,60]
[342391841,1731783242036,4103.58,0.00026,60]
[342391842,1731783242082,573.11,0.00026,60]
[342391843,1731783242138,1587.36,0.00026,60]
[342391844,1731783242180,559.16,0.00026,60]
[342391845,1731783242224,500.0,0.00026,60]
[342391846,1731783242270,500.0,0.00026,60]
[342391847,1731783242313,1591.98,0.00026,60]
[342391848,1731783242360,573.11,0.00026,60]
[342391849,1731783242405,4103.58,0.00026,60]
[342391850,1731783242459,500.0,0.00026,60]
[342391851,1731783242503,1587.36,0.00026,60]